fUSD/lending_fUSD_20260401
["ID","MTS","AMOUNT","RATE_DAILY","PERIOD"]
[419271025,1775075540975,-2608.1731129,0.00043836,31]
[419271026,1775075540984,-2608.1731129,0.00043836,31]
[419271027,1775075540993,-2608.1731129,0.00043836,31]
[419271028,1775075541001,-2608.1731129,0.00043836,31]
[419271029,1775075541012,-2608.1731129,0.00043836,31]
[419271030,1775075541022,-1004.34,0.00043836,120]
[419271031,1775075541031,-1004.34,0.00043836,120]
[419271032,1775075541040,-213.78904197,0.00043843,120]
[419271033,1775075541049,-150.0,0.0004385,120]
[419271034,1775075541058,-622.03451323,0.00043854,30]
[419271035,1775075541067,-500.0,0.00043858,120]
[419271036,1775075541076,-2094.03,0.00043858,120]
[419271037,1775075541085,-1794.98,0.00043858,120]
[419271038,1775075541094,-1661.35,0.00043858,120]
[419271039,1775075541103,-1412.08,0.00043858,120]
[419271040,1775075541112,-489.0,0.00043864,120]
[419271041,1775075541122,-151.0,0.00043885,60]
[419271042,1775075541131,-24662.99312241,0.000439,14]
[419271043,1775075541141,-476.63671659,0.000439,120]
[419271044,1775075541150,-157.84,0.000439,2]
[419271045,1775075541160,-200000.0,0.000439,120]
[419271046,1775075541170,-622.03451323,0.00043901,30]
[419271047,1775075541179,-380.0,0.00043917,2]
[419271048,1775075541189,-152.0,0.00043917,2]
[419271049,1775075541197,-489.0,0.0004392,120]
[419271050,1775075541207,-589.56004402,0.0004392,2]
[419271051,1775075541216,-1300.0,0.00043932,2]
[419271052,1775075541225,-1300.0,0.00043932,2]
[419271053,1775075541235,-1204.0,0.00043932,2]
[419271054,1775075541245,-3845.7833503,0.00043947,2]
[419271055,1775075541254,-6160.0,0.00043947,2]
[419271056,1775075541263,-150.0,0.00043948,120]
[419271057,1775075541273,-622.03451323,0.00043949,30]
[419271058,1775075541282,-1000.0,0.0004395,70]
[419271059,1775075541291,-156.99011647,0.00043956,2]
[419271060,1775075541301,-489.0,0.00043976,120]
[419271061,1775075541310,-1000.0,0.0004398,120]
[419271062,1775075541319,-5519.19222266,0.00043987,120]
[419271063,1775075541328,-622.03451323,0.00043996,30]
[419271064,1775075541337,-158.97013904,0.00044,5]
[419271065,1775075541346,-159.75,0.00044,5]
[419271066,1775075541355,-399571.0424268,0.00044,120]
[419271067,1775075541364,-35458.24790739,0.00044,120]
[419271068,1775075541373,-18579.94961265,0.00044,30]
[419271069,1775075541383,-975.0,0.00044,120]
[419271070,1775075541392,-5102.37788162,0.00044,120]
[419271071,1775075541403,-10000.0,0.00044,30]
[419271072,1775075541413,-477.84289909,0.00044,30]
[419271073,1775075541424,-4979679.19562077,0.00044,120]
[419271074,1775075541435,-9296.51695361,0.00044,30]
[419271075,1775075541445,-286.89388413,0.00044,20]
[419271076,1775075541456,-10000.0,0.00044,120]
[419271077,1775075541465,-2490.0,0.00044,120]
[419271078,1775075541474,-71014.25955601,0.00044,2]
[419271079,1775075541486,-256.68479318,0.00044,120]
[419271080,1775075541495,-163.70054304,0.00044,120]
[419271081,1775075541504,-2000.0,0.00044,120]
[419271082,1775075541514,-4106.2,0.00044,120]
[419271083,1775075541525,-8466.0,0.00044,120]
[419271084,1775075541536,-500.0,0.00044,120]
[419271085,1775075541545,-3199.0,0.00044,90]
[419271086,1775075541554,-7801.2451348,0.00044,7]
[419271087,1775075541564,-10017.56258498,0.00044,7]
[419271088,1775075541573,-5000.0,0.00044,120]
[419271089,1775075541582,-46293.0,0.00044,10]
[419271090,1775075541591,-2330.42885382,0.00044,60]
[419271091,1775075541600,-5000.0,0.00044,7]
[419271092,1775075541609,-1549.20536899,0.00044,120]
[419271093,1775075541618,-2427.84679474,0.00044,120]
[419271094,1775075541627,-2127.7157319,0.00044,120]
[419271095,1775075541637,-7000.0,0.00044,7]
[419271096,1775075541646,-198.56616257,0.00044,30]
[419271097,1775075541655,-500.0,0.00044,120]
[419271098,1775075541664,-220.0,0.00044,2]
[419271099,1775075541673,-772.0,0.00044,2]
[419271100,1775075541682,-100086.22513907,0.00044,120]
[419271101,1775075541692,-222.0,0.00044,2]
[419271102,1775075541701,-231.0,0.00044,73]
[419271103,1775075541710,-2093.8038845,0.00044,2]
[419271104,1775075541720,-5000.0,0.00044,20]
[419271105,1775075541729,-566.297681,0.00044,57]
[419271106,1775075541739,-2228.46,0.00044,120]
[419271107,1775075541748,-591.47,0.00044,120]
[419271108,1775075541758,-300.0,0.00044,120]
[419271109,1775075541767,-1668.05213095,0.00044,120]
[419271110,1775075541777,-150.0,0.00044,120]
[419271111,1775075541786,-159.01831236,0.00044,120]
[419271112,1775075541796,-805.48481767,0.00044,120]
[419271113,1775075541807,-718.9,0.00044,120]
[419271114,1775075541817,-500.0,0.00044,120]
[419271115,1775075541827,-665.30641892,0.00044,120]
[419271116,1775075541838,-1001.0,0.00044,30]
[419271117,1775075541847,-1000.0,0.0004403,120]
[419271118,1775075541856,-1000.0,0.0004403,120]
[419271119,1775075541865,-1000.0,0.0004403,120]
[419271120,1775075541873,-1000.0,0.0004403,120]
[419271121,1775075541882,-489.0,0.00044032,120]
[419271122,1775075541892,-622.03451323,0.00044043,30]
[419271123,1775075541901,-150.0,0.00044046,120]
[419271124,1775075541910,-489.0,0.00044088,120]
[419271125,1775075541919,-622.03451323,0.00044091,30]
[419271126,1775075541930,-152.0,0.000441,120]
[419271127,1775075541939,-3500.0,0.00044109,120]
[419271128,1775075541948,-856.0,0.0004411,120]
[419271129,1775075541957,-856.0,0.0004411,120]
[419271130,1775075541966,-284.10893989,0.0004411,120]
[419271131,1775075541975,-1004.34,0.0004411,120]
[419271132,1775075541985,-1004.34,0.0004411,120]
[419271133,1775075541994,-1780.0,0.00044137,30]
[419271134,1775075542004,-622.03451323,0.00044138,30]
[419271135,1775075542013,-489.0,0.00044143,120]
[419271136,1775075542022,-150.0,0.00044143,120]
[419271137,1775075542031,-622.03451323,0.00044186,30]
[419271138,1775075542040,-510.5595222,0.00044194,2]
[419271139,1775075542048,-489.0,0.00044199,120]
[419271140,1775075542058,-361.72290788,0.000442,120]
[419271141,1775075542067,-1955.55,0.00044202,30]
[419271142,1775075542076,-434.6230961,0.0004422,2]
[419271143,1775075542084,-2300.0,0.00044227,120]
[419271144,1775075542093,-156.99011647,0.0004423,2]
[419271145,1775075542103,-622.03451323,0.00044233,30]
[419271146,1775075542112,-150.0,0.00044241,120]
[419271147,1775075542121,-489.0,0.00044255,120]
[419271148,1775075542130,-500.0,0.00044266,120]
[419271149,1775075542139,-500.0,0.00044266,120]
[419271150,1775075542148,-299.06204199,0.00044268,120]
[419271151,1775075542159,-622.03451323,0.0004428,30]
[419271152,1775075542170,-150.0,0.00044281,120]
[419271153,1775075542179,-450.64,0.00044285,120]
[419271154,1775075542190,-2809.0,0.0004429,16]
[419271155,1775075542199,-489.0,0.00044311,120]
[419271156,1775075542208,-510.0,0.00044326,29]
[419271157,1775075542219,-622.03451323,0.00044328,30]
[419271158,1775075542228,-150.0,0.00044339,120]
[419271159,1775075542238,-150.0,0.00044339,120]
[419271160,1775075542247,-152.0,0.00044359,14]
[419271161,1775075542256,-489.0,0.00044367,120]
[419271162,1775075542265,-622.03451323,0.00044375,30]
[419271163,1775075542274,-4000.0,0.00044383,120]
[419271164,1775075542282,-856.0,0.00044384,120]
[419271165,1775075542291,-856.0,0.00044384,120]
[419271166,1775075542300,-750.0,0.00044384,10]
[419271167,1775075542309,-1004.34,0.00044384,120]
[419271168,1775075542318,-1004.34,0.00044384,120]
[419271169,1775075542328,-450.64,0.00044385,120]
[419271170,1775075542337,-480.0,0.000444,120]
[419271171,1775075542346,-153.0,0.000444,120]
[419271172,1775075542355,-13723.27,0.000444,120]
[419271173,1775075542363,-208.0240829,0.00044401,120]
[419271174,1775075542372,-500.0,0.00044411,120]
[419271175,1775075542382,-500.0,0.00044411,120]
[419271176,1775075542391,-150.0,0.00044411,120]
[419271177,1775075542400,-176.49678587,0.00044411,120]
[419271178,1775075542409,-825.0,0.00044416,120]
[419271179,1775075542419,-4763937.8753,0.00044418,30]
[419271180,1775075542429,-622.03451323,0.00044422,30]
[419271181,1775075542439,-489.0,0.00044423,120]
[419271182,1775075542449,-315.67659988,0.00044427,120]
[419271183,1775075542458,-150.0,0.00044437,120]
[419271184,1775075542467,-4230.31235402,0.0004444,120]
[419271185,1775075542477,-150.0,0.00044444,120]
[419271186,1775075542488,-622.03451323,0.0004447,30]
[419271187,1775075542498,-489.0,0.00044479,120]
[419271188,1775075542507,-1941.31,0.0004448,120]
[419271189,1775075542516,-182.66,0.00044481,2]
[419271190,1775075542526,-250.0,0.00044484,100]
[419271191,1775075542535,-450.64,0.00044485,120]
[419271192,1775075542545,-120000.0,0.000445,55]
[419271193,1775075542555,-120000.0,0.000445,60]
[419271194,1775075542564,-120000.0,0.000445,65]
[419271195,1775075542574,-120000.0,0.000445,70]
[419271196,1775075542584,-120000.0,0.000445,75]
[419271197,1775075542593,-120000.0,0.000445,80]
[419271198,1775075542603,-120000.0,0.000445,85]
[419271199,1775075542612,-120000.0,0.000445,90]
[419271200,1775075542622,-250.0,0.000445,120]
[419271201,1775075542633,-150.0,0.000445,120]
[419271202,1775075542643,-19758.0,0.000445,65]
[419271203,1775075542653,-1409.18246747,0.000445,30]
[419271204,1775075542663,-528.46005755,0.000445,20]
[419271205,1775075542673,-838.58445319,0.000445,120]
[419271206,1775075542793,-88343.71846192,0.000445,120]
[419271207,1775075542808,-2273.03,0.000445,120]
[419271208,1775075542819,-603.29,0.000445,120]
[419271209,1775075542829,-300.0,0.000445,120]
[419271210,1775075542838,-150.0,0.000445,120]
[419271211,1775075542847,-428.0,0.000445,120]
[419271212,1775075542857,-3000.0,0.00044501,120]
[419271213,1775075542866,-156.99011647,0.00044504,2]
[419271214,1775075542875,-744.97,0.00044506,120]
[419271215,1775075542884,-500.0,0.00044511,120]
[419271216,1775075542894,-500.0,0.00044511,120]
[419271217,1775075542904,-622.03451323,0.00044517,30]
[419271218,1775075542914,-515.1359,0.00044521,120]
[419271219,1775075542924,-515.1359,0.00044521,120]
[419271220,1775075542934,-515.1359,0.00044521,120]
[419271221,1775075542944,-515.1359,0.00044521,120]
[419271222,1775075542954,-515.1359,0.00044521,120]
[419271223,1775075542964,-515.1359,0.00044521,120]
[419271224,1775075542974,-515.1359,0.00044521,120]
[419271225,1775075542984,-515.1359,0.00044521,120]
[419271226,1775075542994,-515.1359,0.00044521,120]
[419271227,1775075543003,-515.1359,0.00044521,120]
[419271228,1775075543012,-515.1359,0.00044521,120]
[419271229,1775075543022,-515.1359,0.00044521,120]
[419271230,1775075543032,-515.1359,0.00044521,120]
[419271231,1775075543041,-515.1359,0.00044521,120]
[419271232,1775075543052,-515.1359,0.00044521,120]
[419271233,1775075543062,-515.1359,0.00044521,120]
[419271234,1775075543072,-515.1359,0.00044521,120]
[419271235,1775075543081,-515.1359,0.00044521,120]
[419271236,1775075543092,-515.1359,0.00044521,120]
[419271237,1775075543102,-515.1359,0.00044521,120]
[419271238,1775075543112,-489.0,0.00044535,120]
[419271239,1775075543122,-150.0,0.00044535,120]
[419271240,1775075543133,-622.03451323,0.00044564,30]
[419271241,1775075543142,-167.91,0.00044582,14]
[419271242,1775075543153,-167.91,0.00044582,14]
[419271243,1775075543162,-167.92702451,0.00044582,14]
[419271244,1775075543172,-450.64,0.00044585,120]
[419271245,1775075543182,-334.24581164,0.00044585,120]
[419271246,1775075543192,-489.0,0.00044591,120]
[419271247,1775075543202,-63000.0,0.000446,30]
[419271248,1775075543212,-200.0,0.000446,19]
[419271249,1775075543222,-162.0,0.0004461,16]
[419271250,1775075543237,-500.0,0.00044611,120]
[419271251,1775075543247,-500.0,0.00044611,120]
[419271252,1775075543256,-1400.0,0.00044611,2]
[419271253,1775075543267,-1400.0,0.00044611,2]
[419271254,1775075543283,-1283.0,0.00044611,2]
[419271255,1775075543293,-622.03451323,0.00044612,30]
[419271256,1775075543303,-150.0,0.00044616,120]
[419271257,1775075543317,-150.0,0.00044633,120]
[419271258,1775075543329,-161.41092255,0.0004464,2]
[419271259,1775075543339,-489.0,0.00044647,120]
[419271260,1775075543348,-4500.0,0.00044657,120]
[419271261,1775075543358,-856.0,0.00044658,120]
[419271262,1775075543368,-856.0,0.00044658,120]
[419271263,1775075543378,-1004.34,0.00044658,120]
[419271264,1775075543388,-1004.34,0.00044658,120]
[419271265,1775075543400,-622.03451323,0.00044659,30]
[419271266,1775075543410,-450.64,0.00044685,120]
[419271267,1775075543422,-150.0,0.00044685,120]
[419271268,1775075543431,-3193.44,0.0004469,120]
[419271269,1775075543441,-8025.91690912,0.000447,7]
[419271270,1775075543451,-489.0,0.00044703,120]
[419271271,1775075543460,-622.03451323,0.00044707,30]
[419271272,1775075543470,-583.21686206,0.00044727,90]
[419271273,1775075543481,-150.0,0.00044731,120]
[419271274,1775075543491,-355.13617487,0.00044744,120]
[419271275,1775075543501,-622.03451323,0.00044754,30]
[419271276,1775075543512,-489.0,0.00044758,120]
[419271277,1775075543521,-150.0,0.00044765,120]
[419271278,1775075543531,-2300.0,0.00044775,120]
[419271279,1775075543541,-156.99011647,0.00044778,2]
[419271280,1775075543551,-450.64,0.00044785,120]
[419271281,1775075543561,-7455.54502465,0.000448,120]
[419271282,1775075543571,-5949.2,0.000448,31]
[419271283,1775075543581,-36000.0,0.000448,30]
[419271284,1775075543590,-1656.45,0.00044801,30]
[419271285,1775075543600,-622.03451323,0.00044801,30]
[419271286,1775075543610,-150.0,0.00044804,120]
[419271287,1775075543619,-150.0,0.00044804,120]
[419271288,1775075543629,-489.0,0.00044814,120]
[419271289,1775075543638,-150.0,0.00044828,120]
[419271290,1775075543647,-151.0,0.00044834,2]
[419271291,1775075543658,-622.03451323,0.00044849,30]
[419271292,1775075543667,-1941.25,0.0004485,120]
[419271293,1775075543677,-321.8504753,0.0004485,120]
[419271294,1775075543687,-380.0,0.00044851,2]
[419271295,1775075543696,-152.0,0.00044851,2]
[419271296,1775075543706,-396.06,0.00044858,120]
[419271297,1775075543715,-151.20396,0.00044866,30]
[419271298,1775075543725,-489.0,0.0004487,120]
[419271299,1775075543734,-500000.0,0.00044875,2]
[419271300,1775075543744,-9823.35544791,0.0004488,120]
[419271301,1775075543754,-150.0,0.00044882,120]
[419271302,1775075543764,-450.64,0.00044885,120]
[419271303,1775075543774,-151.0,0.00044885,60]
[419271304,1775075543784,-3252.23353971,0.0004489,120]
[419271305,1775075543793,-622.03451323,0.00044896,30]
[419271306,1775075543803,-5000.0,0.000449,120]
[419271307,1775075543813,-454.0,0.000449,120]
[419271308,1775075543822,-272471.4252934,0.000449,30]
[419271309,1775075543831,-1780.0492972,0.000449,30]
[419271310,1775075543843,-437.72285296,0.000449,120]
[419271311,1775075543853,-9444.76519986,0.000449,30]
[419271312,1775075543863,-378.81191986,0.00044903,120]
[419271313,1775075543873,-489.0,0.00044926,120]
[419271314,1775075543883,-150.0,0.00044926,120]
[419271315,1775075543894,-5000.0,0.00044931,120]
[419271316,1775075543904,-856.0,0.00044932,120]
[419271317,1775075543913,-850.0,0.00044932,10]
[419271318,1775075543923,-1004.46,0.00044932,120]
[419271319,1775075543932,-1004.46,0.00044932,120]
[419271320,1775075543943,-150.0,0.00044937,120]
[419271321,1775075543953,-622.03451323,0.00044943,30]
[419271322,1775075543963,-3193.44,0.00044953,120]
[419271323,1775075543973,-243.0,0.0004496,30]
[419271324,1775075543982,-498.01,0.00044973,120]
[419271325,1775075543992,-489.0,0.00044982,120]
[419271326,1775075544002,-450.64,0.00044985,120]
[419271327,1775075544012,-622.03451323,0.00044991,30]
[419271328,1775075544023,-500.0,0.00044999,120]
[419271329,1775075544033,-500.0,0.00044999,120]
[419271330,1775075544042,-616.12,0.00044999,120]
[419271331,1775075544052,-538.1418291,0.00045,120]
[419271332,1775075544062,-2956.71396398,0.00045,120]
[419271333,1775075544072,-309.22,0.00045,120]
[419271334,1775075544082,-1569.15461584,0.00045,111]
[419271335,1775075544092,-1198.0,0.00045,30]
[419271336,1775075544102,-2000.0,0.00045,2]
[419271337,1775075544112,-2000.0,0.00045,2]
[419271338,1775075544122,-2000.0,0.00045,2]
[419271339,1775075544131,-2000.0,0.00045,2]
[419271340,1775075544141,-2000.0,0.00045,2]
[419271341,1775075544151,-2000.0,0.00045,2]
[419271342,1775075544161,-2000.0,0.00045,2]
[419271343,1775075544171,-3000.0,0.00045,2]
[419271344,1775075544181,-2000.0,0.00045,2]
[419271345,1775075544192,-2000.0,0.00045,2]
[419271346,1775075544202,-1000.0,0.00045,2]
[419271347,1775075544212,-500.0,0.00045,45]
[419271348,1775075544221,-500.0,0.00045,45]
[419271349,1775075544233,-151.64714102,0.00045,30]
[419271350,1775075544242,-251.28056148,0.00045,5]
[419271351,1775075544252,-546.22344556,0.00045,90]
[419271352,1775075544261,-203.243537,0.00045,120]
[419271353,1775075544274,-500.0,0.00045,45]
[419271354,1775075544284,-295.3,0.00045,120]
[419271355,1775075544294,-500.0,0.00045,45]
[419271356,1775075544305,-254.18662699,0.00045,120]
[419271357,1775075544315,-500.0,0.00045,45]
[419271358,1775075544324,-500.0,0.00045,45]
[419271359,1775075544333,-500.0,0.00045,45]
[419271360,1775075544342,-500.0,0.00045,45]
[419271361,1775075544351,-500.0,0.00045,45]
[419271362,1775075544361,-500.0,0.00045,45]
[419271363,1775075544370,-500.0,0.00045,45]
[419271364,1775075544380,-500.0,0.00045,45]
[419271365,1775075544389,-500.0,0.00045,45]
[419271366,1775075544399,-382.0,0.00045,120]
[419271367,1775075544408,-500.0,0.00045,45]
[419271368,1775075544418,-500.0,0.00045,45]
[419271369,1775075544427,-500.0,0.00045,45]
[419271370,1775075544436,-500.0,0.00045,45]
[419271371,1775075544446,-500.0,0.00045,45]
[419271372,1775075544456,-500.0,0.00045,45]
[419271373,1775075544465,-500.0,0.00045,45]
[419271374,1775075544475,-500.0,0.00045,45]
[419271375,1775075544485,-500.0,0.00045,45]
[419271376,1775075544494,-500.0,0.00045,45]
[419271377,1775075544504,-500.0,0.00045,45]
[419271378,1775075544513,-500.0,0.00045,45]
[419271379,1775075544522,-500.0,0.00045,45]
[419271380,1775075544531,-500.0,0.00045,45]
[419271381,1775075544541,-500.0,0.00045,45]
[419271382,1775075544550,-500.0,0.00045,45]
[419271383,1775075544560,-500.0,0.00045,45]
[419271384,1775075544569,-500.0,0.00045,45]
[419271385,1775075544579,-500.0,0.00045,45]
[419271386,1775075544587,-500.0,0.00045,45]
[419271387,1775075544597,-500.0,0.00045,45]
[419271388,1775075544608,-3445.98687564,0.00045,120]
[419271389,1775075544618,-2453.29340235,0.00045,120]
[419271390,1775075544627,-2469.07405968,0.00045,14]
[419271391,1775075544636,-558.30439115,0.00045,120]
[419271392,1775075544646,-500.0,0.00045,45]
[419271393,1775075544656,-153.67670936,0.00045,30]
[419271394,1775075544666,-499.35121319,0.00045,120]
[419271395,1775075544676,-613.3283091,0.00045,10]
[419271396,1775075544685,-1040.44003166,0.00045,120]
[419271397,1775075544694,-2823.85591064,0.00045,60]
[419271398,1775075544704,-164.4821037,0.00045,10]
[419271399,1775075544713,-232.01636017,0.00045,120]
[419271400,1775075544722,-1900.82417762,0.00045,120]
[419271401,1775075544732,-500.0,0.00045,45]
[419271402,1775075544741,-500.0,0.00045,45]
[419271403,1775075544751,-500.0,0.00045,45]
[419271404,1775075544760,-500.0,0.00045,45]
[419271405,1775075544770,-500.0,0.00045,45]
[419271406,1775075544780,-500.0,0.00045,45]
[419271407,1775075544789,-500.0,0.00045,45]
[419271408,1775075544799,-500.0,0.00045,45]
[419271409,1775075544809,-500.0,0.00045,45]
[419271410,1775075544818,-500.0,0.00045,45]
[419271411,1775075544827,-500.0,0.00045,45]
[419271412,1775075544836,-500.0,0.00045,45]
[419271413,1775075544846,-500.0,0.00045,45]
[419271414,1775075544855,-500.0,0.00045,45]
[419271415,1775075544866,-500.0,0.00045,45]
[419271416,1775075544875,-500.0,0.00045,45]
[419271417,1775075544884,-35966.8436077,0.00045,45]
[419271418,1775075544894,-1000.0,0.00045,120]
[419271419,1775075544903,-1000.0,0.00045,120]
[419271420,1775075544913,-200.0,0.00045,120]
[419271421,1775075545239,-1586.0,0.00045,120]
[419271422,1775075545249,-36990.16882667,0.00045,120]
[419271423,1775075545259,-360.0,0.00045,120]
[419271424,1775075545268,-29861.0,0.00045,120]
[419271425,1775075545278,-500.0,0.00045,120]
[419271426,1775075545288,-500.0,0.00045,120]
[419271427,1775075545297,-584.0,0.00045,120]
[419271428,1775075545307,-1000.0,0.00045,70]
[419271429,1775075545317,-1154.09770004,0.00045,120]
[419271430,1775075545326,-250.0,0.00045,60]
[419271431,1775075545336,-1000.0,0.00045,120]
[419271432,1775075545345,-1000.0,0.00045,120]
[419271433,1775075545354,-23014.44487956,0.00045,120]
[419271434,1775075545364,-155.24610145,0.00045,110]
[419271435,1775075545373,-1064.05776734,0.00045,120]
[419271436,1775075545382,-35828.92261422,0.00045,120]
[419271437,1775075545391,-6869.0,0.00045,120]
[419271438,1775075545400,-2703.0,0.00045,120]
[419271439,1775075545410,-174.11,0.00045,120]
[419271440,1775075545420,-16264.58871867,0.00045,30]
[419271441,1775075545429,-335.05233032,0.00045,30]
[419271442,1775075545439,-30000.0,0.00045,20]
[419271443,1775075545448,-3000.0,0.00045,60]
[419271444,1775075545457,-3000.0,0.00045,60]
[419271445,1775075545466,-1000.0,0.00045,120]
[419271446,1775075545475,-2493.998707,0.00045,120]
[419271447,1775075545486,-43599.48002775,0.00045,60]
[419271448,1775075545496,-16491.68,0.00045,10]
[419271449,1775075545507,-3000.0,0.00045,120]
[419271450,1775075545516,-12055.3409377,0.00045,7]
[419271451,1775075545526,-920.0,0.00045,30]
[419271452,1775075545535,-187.04867959,0.00045,120]
[419271453,1775075545545,-10000.0,0.00045,7]
[419271454,1775075545555,-152.66655878,0.00045,120]
[419271455,1775075545565,-600.0,0.00045,120]
[419271456,1775075545574,-3258.26002064,0.00045,14]
[419271457,1775075545584,-5000.0,0.00045,120]
[419271458,1775075545594,-5000.0,0.00045,120]
[419271459,1775075545603,-259422.4970895,0.00045,5]
[419271460,1775075545613,-169.93636079,0.00045,100]
[419271461,1775075545622,-10000.0,0.00045,120]
[419271462,1775075545632,-6900.0,0.00045,30]
[419271463,1775075545642,-508.12620388,0.00045,2]
[419271464,1775075545651,-4998.6098495,0.00045,120]
[419271465,1775075545661,-3767.57690048,0.00045,120]
[419271466,1775075545671,-3005.7,0.00045,60]
[419271467,1775075545683,-10071.83704304,0.00045,30]
[419271468,1775075545694,-10089.58575952,0.00045,30]
[419271469,1775075545704,-776.83274532,0.00045,120]
[419271470,1775075545714,-317251.36466605,0.00045,30]
[419271471,1775075545724,-326.32,0.00045,120]
[419271472,1775075545735,-3011.0,0.00045,40]
[419271473,1775075545745,-55413.36521641,0.00045,120]
[419271474,1775075545755,-1000.0,0.00045,30]
[419271475,1775075545765,-500.0,0.00045,30]
[419271476,1775075545776,-45000.0,0.00045,30]
[419271477,1775075545786,-727.58351353,0.00045,30]
[419271478,1775075545796,-61791.86501096,0.00045,120]
[419271479,1775075545806,-2400.0,0.00045,61]
[419271480,1775075545816,-1500.0,0.00045,120]
[419271481,1775075545826,-1800.0,0.00045,120]
[419271482,1775075545836,-33867.5904611,0.00045,120]
[419271483,1775075545848,-33188.74044159,0.00045,30]
[419271484,1775075545857,-1490.32091812,0.00045,120]
[419271485,1775075545868,-1050.0,0.00045,120]
[419271486,1775075545878,-3460.91026245,0.00045,120]
[419271487,1775075545889,-892.71135366,0.00045,120]
[419271488,1775075545898,-1869.2354803,0.00045,120]
[419271489,1775075545908,-3391.08461097,0.00045,30]
[419271490,1775075545919,-2081.47580149,0.00045,30]
[419271491,1775075545930,-1125.95566659,0.00045,30]
[419271492,1775075545940,-526.76907962,0.00045,120]
[419271493,1775075545950,-3180.42940746,0.00045,120]
[419271494,1775075545959,-233.85891874,0.00045,30]
[419271495,1775075545968,-253.53961253,0.00045,30]
[419271496,1775075545977,-2510.93578754,0.00045,120]
[419271497,1775075545987,-1178.0469845,0.00045,120]
[419271498,1775075545996,-1434.71766741,0.00045,30]
[419271499,1775075546005,-1016.24002846,0.00045,60]
[419271500,1775075546014,-2908.79642484,0.00045,30]
[419271501,1775075546025,-1742.0,0.00045,120]
[419271502,1775075546035,-852.20189508,0.00045,30]
[419271503,1775075546046,-458.16121184,0.00045,10]
[419271504,1775075546056,-3315.03722805,0.00045,120]
[419271505,1775075546064,-1791.52536959,0.00045,30]
[419271506,1775075546075,-5096.0,0.00045,120]
[419271507,1775075546085,-100000.0,0.00045,120]
[419271508,1775075546094,-11352.0,0.00045,30]
[419271509,1775075546104,-234.23,0.00045,120]
[419271510,1775075546114,-499.86428615,0.00045,120]
[419271511,1775075546124,-445.63,0.00045,120]
[419271512,1775075546134,-1139.88,0.00045,120]
[419271513,1775075546143,-389.72,0.00045,120]
[419271514,1775075546152,-183.55,0.00045,120]
[419271515,1775075546162,-1500.0,0.00045,120]
[419271516,1775075546171,-264301.94301322,0.00045,120]
[419271517,1775075547686,-6649.14605615,0.00045,120]
[419271524,1775076470094,150.0012,0.000136,120]
[419271526,1775076631855,-584.3869834,0.00012241,2]
[419271527,1775076631867,-29.1630166,0.00012241,2]
[419271528,1775076631876,-195.0,0.00012458,2]
[419271529,1775076631886,-195.0,0.00012676,2]
[419271530,1775076631896,-159.8889,0.00013011,2]
[419271531,1775076631906,-114.5611,0.00013465,2]